fUST/lending_fUST_20250507
["ID","MTS","AMOUNT","RATE_DAILY","PERIOD"]
[360198172,1746616236095,-400.0,0.00013698,2]
[360198174,1746616236104,-400.0,0.00013698,2]
[360198176,1746616236113,-704.99,0.00013698,2]
[360198178,1746616236122,-400.0,0.00013698,2]
[360198180,1746616236131,-989.63,0.00013698,2]
[360198182,1746616236141,-1454.8,0.00013698,2]
[360198184,1746616236150,-400.0,0.00013698,2]
[360198186,1746616236160,-420.48204708,0.00013698,2]
[360198188,1746616236169,-400.0,0.00013698,2]
[360198190,1746616236178,-400.0,0.00013698,2]
[360198192,1746616236188,-400.0,0.00013698,2]
[360198194,1746616236198,-400.0,0.00013698,2]
[360198196,1746616236208,-310.73181899,0.00013698,2]
[360198198,1746616236217,-400.0,0.00013698,2]
[360198200,1746616236227,-506.08,0.00013698,2]
[360198202,1746616236236,-400.0,0.00013698,2]
[360198204,1746616236245,-801.84,0.00013698,2]
[360198206,1746616236254,-431.22,0.00013698,2]
[360198208,1746616236265,-400.0,0.00013698,2]
[360198209,1746616236275,-400.0,0.00013698,2]
[360198211,1746616236285,-464.13,0.00013698,2]
[360198213,1746616236294,-6271.12,0.00013698,2]
[360198216,1746616236305,-400.0,0.00013698,2]
[360198217,1746616236316,-686.53,0.00013698,2]
[360198219,1746616236326,-1326.48,0.00013698,2]
[360198221,1746616236336,-1440.26,0.00013698,2]
[360198224,1746616236347,-151.0,0.00013698,2]
[360198226,1746616236356,-400.0,0.00013698,2]
[360198227,1746616236366,-755.69,0.00013698,2]
[360198230,1746616236375,-400.0,0.00013698,2]
[360198232,1746616236386,-400.0,0.00013698,2]
[360198234,1746616236395,-400.0,0.00013698,2]
[360198236,1746616236405,-400.0,0.00013698,2]
[360198238,1746616236414,-461.94307856,0.00013698,2]
[360198240,1746616236424,-400.0,0.00013698,2]
[360198242,1746616236433,-400.0,0.00013698,2]
[360198244,1746616236443,-400.0,0.00013698,2]
[360198246,1746616236454,-400.0,0.00013698,2]
[360198248,1746616236464,-362.42527342,0.00013698,2]
[360198250,1746616236473,-400.0,0.00013698,2]
[360198252,1746616236483,-401.69537121,0.00013698,2]
[360198254,1746616236492,-400.0,0.00013698,2]
[360198256,1746616236502,-400.0,0.00013698,2]
[360198258,1746616236512,-400.0,0.00013698,2]
[360198260,1746616236521,-1535.93,0.00013698,2]
[360198262,1746616236531,-400.0,0.00013698,2]
[360198264,1746616236541,-400.0,0.00013698,2]
[360198266,1746616236550,-400.0,0.00013698,2]
[360198268,1746616236559,-400.0,0.00013698,2]
[360198270,1746616236568,-400.0,0.00013698,2]
[360198272,1746616236578,-755.1,0.00013698,2]
[360198274,1746616236588,-460.05,0.00013698,2]
[360198276,1746616236600,-400.0,0.00013698,2]
[360198278,1746616236609,-433.33,0.00013698,2]
[360198280,1746616236618,-686.7,0.00013698,2]
[360198282,1746616236628,-493.02,0.00013698,2]
[360198284,1746616236637,-330.95099605,0.00013698,2]
[360198286,1746616236645,-400.0,0.00013698,2]
[360198288,1746616236655,-400.0,0.00013698,2]
[360198290,1746616236663,-1318.18505827,0.00013698,2]
[360198437,1746616238602,-73.49494173,0.00013698,2]
[360198438,1746616238612,-403.9829589,0.00013698,2]
[360198439,1746616238621,-514.23,0.00013698,2]
[360198440,1746616238630,-532.4401378,0.00013698,2]
[360198441,1746616238640,-251.29561627,0.00013698,2]
[360198442,1746616238649,-24.5563453,0.00013698,2]
[360198443,1746616238707,-470.20489636,0.00013698,2]
[360198444,1746616238717,-317.35529987,0.00013698,2]
[360198445,1746616238728,-400.0,0.00013698,2]
[360198446,1746616238737,-400.0,0.00013698,2]
[360198448,1746616238747,-609.78096575,0.00013698,2]
[360198454,1746616238775,-474.41773607,0.00013687,2]
[360198456,1746616238785,-755.40903425,0.00013698,2]
[360198459,1746616238795,-561.95,0.00013698,2]
[360198462,1746616238805,-404.49057421,0.00013698,2]
[360198464,1746616238814,-400.0,0.00013698,2]
[360198466,1746616238824,-369.57941243,0.00013698,2]
[360198468,1746616238834,-1075.71,0.00013698,2]
[360198470,1746616238843,-400.0,0.00013698,2]
[360198472,1746616238853,-617.41,0.00013698,2]
[360198474,1746616238863,-400.0,0.00013698,2]
[360198476,1746616238872,-1876.29,0.00013698,2]
[360198478,1746616238882,-400.0,0.00013698,2]
[360198480,1746616238891,-515.90564956,0.00013698,2]
[360198482,1746616238900,-4096.88,0.00013698,2]
[360198484,1746616238909,-500.0,0.00013698,2]
[360198486,1746616238919,-1635.38,0.00013698,2]
[360198488,1746616238929,-400.0,0.00013698,2]
[360198490,1746616238939,-152.424644,0.00013698,2]
[360198492,1746616238949,-400.0,0.00013698,2]
[360198494,1746616238959,-2087.13,0.00013698,2]
[360198496,1746616238969,-400.0,0.00013698,2]
[360198498,1746616238979,-400.0,0.00013698,2]
[360198500,1746616238988,-673.53,0.00013698,2]
[360198502,1746616238997,-400.0,0.00013698,2]
[360198504,1746616239006,-529.15,0.00013698,2]
[360198506,1746616239016,-400.0,0.00013698,2]
[360198507,1746616239026,-400.0,0.00013698,2]
[360198509,1746616239036,-724.33,0.00013698,2]
[360198511,1746616239045,-400.0,0.00013698,2]
[360198512,1746616239055,-671.66,0.00013698,2]
[360198513,1746616239064,-411.55348323,0.00013698,2]
[360198514,1746616239074,-400.0,0.00013698,2]
[360198515,1746616239084,-280.41770682,0.00013698,2]
[360199142,1746616247175,-993.30213514,0.00012196,2]
[360200685,1746617264356,-250.0,0.00012096,2]
[360200686,1746617264377,-446.86528993,0.00012096,2]
[360200687,1746617264401,-259.4017493,0.0001215,2]
[360200688,1746617264424,-500.0,0.00012179,2]
[360200689,1746617264445,-254.13338672,0.00012179,2]
[360200690,1746617264467,-204.57093817,0.00012179,2]
[360200691,1746617264490,-500.0,0.00012179,2]
[360200692,1746617264522,-500.0,0.00012179,2]
[360200693,1746617264544,-431.96676157,0.00012179,2]
[360200694,1746617264568,-500.0,0.00012179,2]
[360200695,1746617264601,-500.0,0.00012179,2]
[360200696,1746617264624,-500.0,0.00012179,2]
[360200697,1746617264646,-500.0,0.00012179,2]
[360200698,1746617264679,-500.0,0.00012179,2]
[360200699,1746617264702,-500.0,0.00012179,2]
[360200700,1746617264735,-500.0,0.00012179,2]
[360200701,1746617264757,-500.0,0.00012179,2]
[360200702,1746617264790,-500.0,0.00012179,2]
[360200703,1746617264813,-500.0,0.00012179,2]
[360200704,1746617264835,-177.24901383,0.00012179,2]
[360200705,1746617264868,-500.0,0.00012179,2]
[360200706,1746617264890,-500.0,0.00012179,2]
[360200707,1746617264924,-475.81286048,0.00012179,2]
[360200709,1746617347259,-189.33758855,0.00012079,2]
[360200710,1746617347291,-189.33758854,0.00012086,2]
[360200711,1746617347323,-300.0,0.00012177,2]
[360200712,1746617347353,-9321.32482291,0.00012178,2]
[360200754,1746617431750,-1107.0,0.00012177,2]
[360200756,1746617431760,-300.0,0.00012177,2]
[360200758,1746617431770,-77349.67517709,0.00012178,2]
[360200760,1746617431779,-500.0,0.00012178,2]
[360200762,1746617431788,-500.0,0.00012178,2]
[360200764,1746617431797,-241.91655709,0.00012178,2]
[360200766,1746617431807,-500.0,0.00012178,2]
[360200768,1746617431816,-500.0,0.00012178,2]
[360200770,1746617431826,-500.0,0.00012178,2]
[360200772,1746617431835,-500.0,0.00012178,2]
[360200774,1746617431844,-503.80760873,0.00012178,2]
[360200776,1746617431854,-500.0,0.00012178,2]
[360200778,1746617431863,-500.0,0.00012178,2]
[360200780,1746617431873,-500.0,0.00012178,2]
[360200782,1746617431882,-500.0,0.00012178,2]
[360200784,1746617431892,-500.0,0.00012178,2]
[360200786,1746617431901,-500.0,0.00012178,2]
[360200788,1746617431912,-500.0,0.00012178,2]
[360200790,1746617431921,-500.0,0.00012178,2]
[360200792,1746617431930,-500.0,0.00012178,2]
[360200794,1746617431939,-500.0,0.00012178,2]
[360200796,1746617431948,-500.0,0.00012178,2]
[360200798,1746617431958,-500.0,0.00012178,2]
[360200800,1746617431969,-500.0,0.00012178,2]
[360200802,1746617431979,-500.0,0.00012178,2]
[360200804,1746617431988,-500.0,0.00012178,2]
[360200806,1746617431997,-500.0,0.00012178,2]
[360200808,1746617432006,-500.0,0.00012178,2]
[360200810,1746617432015,-500.0,0.00012178,2]
[360200812,1746617432025,-500.0,0.00012178,2]
[360200814,1746617432034,-500.0,0.00012178,2]
[360200816,1746617432043,-500.0,0.00012178,2]
[360200818,1746617432052,-500.0,0.00012178,2]
[360200820,1746617432062,-500.0,0.00012178,2]
[360200822,1746617432071,-500.0,0.00012178,2]
[360200824,1746617432080,-500.0,0.00012178,2]
[360200826,1746617432090,-500.0,0.00012178,2]
[360200828,1746617432099,-500.0,0.00012178,2]
[360200830,1746617432108,-500.0,0.00012178,2]
[360200832,1746617432118,-500.0,0.00012178,2]
[360200834,1746617432128,-350.7612373,0.00012178,2]
[360200836,1746617432137,-500.0,0.00012178,2]
[360200838,1746617432146,-500.0,0.00012178,2]
[360200840,1746617432155,-500.0,0.00012178,2]
[360200842,1746617432165,-500.0,0.00012178,2]
[360200844,1746617432174,-500.0,0.00012178,2]
[360200846,1746617432183,-500.0,0.00012178,2]
[360200848,1746617432192,-500.0,0.00012178,2]
[360200850,1746617432201,-500.0,0.00012178,2]
[360200852,1746617432210,-500.0,0.00012178,2]
[360200854,1746617432219,-500.0,0.00012178,2]
[360200856,1746617432229,-500.0,0.00012178,2]
[360200858,1746617432238,-400.0,0.00012178,2]
[360200860,1746617432247,-500.0,0.00012178,2]
[360200862,1746617432256,-500.0,0.00012178,2]
[360200864,1746617432265,-500.0,0.00012178,2]
[360200866,1746617432275,-500.0,0.00012178,2]
[360200868,1746617432284,-500.0,0.00012178,2]
[360200870,1746617432294,-500.0,0.00012178,2]
[360200872,1746617432304,-500.0,0.00012178,2]
[360200874,1746617432313,-500.0,0.00012178,2]
[360200876,1746617432323,-500.0,0.00012178,2]
[360200878,1746617432332,-500.0,0.00012178,2]
[360200880,1746617432342,-500.0,0.00012178,2]
[360200882,1746617432351,-500.0,0.00012178,2]
[360200884,1746617432360,-500.0,0.00012178,2]
[360200886,1746617432369,-300.0,0.00012178,2]
[360200888,1746617432379,-500.0,0.00012178,2]
[360200890,1746617432388,-500.0,0.00012178,2]
[360200892,1746617432399,-500.0,0.00012178,2]
[360200894,1746617432409,-300.0,0.00012178,2]
[360200896,1746617432421,-500.0,0.00012178,2]
[360200898,1746617432431,-548.25353974,0.00012178,2]
[360200900,1746617432440,-500.0,0.00012178,2]
[360200902,1746617432449,-500.0,0.00012178,2]
[360200904,1746617432458,-500.0,0.00012178,2]
[360200906,1746617432468,-366.88542213,0.00012178,2]
[360200908,1746617432477,-500.0,0.00012178,2]
[360200910,1746617432486,-500.0,0.00012178,2]
[360200912,1746617432496,-500.0,0.00012178,2]
[360200914,1746617432505,-333.44320217,0.00012178,2]
[360200916,1746617432514,-500.0,0.00012178,2]
[360200918,1746617432524,-500.0,0.00012178,2]
[360200920,1746617432533,-500.0,0.00012178,2]
[360200922,1746617432542,-500.0,0.00012178,2]
[360200924,1746617432551,-20840.49433333,0.00012178,2]
[360200926,1746617432565,-6179.97807467,0.00012178,2]
[360200928,1746617432576,-518.7636901,0.00012178,2]
[360201333,1746617437857,-5171.22731307,0.00012178,2]
[360201700,1746617445927,-644.99732729,0.00012178,2]
[360201702,1746617445939,-17289.53658883,0.00012178,2]
[360201704,1746617445948,-5000.0,0.0001218,2]
[360201706,1746617445958,-3225.07525158,0.00012196,2]
[360202002,1746617449196,-13000.0,0.00012196,2]
[360202111,1746617527553,-600.86654541,0.00012178,2]
[360202112,1746617527576,-350.76873714,0.00012178,2]
[360202113,1746617527606,-1712.12585323,0.00012196,2]
[360202114,1746617527636,-300.0,0.00012213,2]
[360202115,1746617527666,-17036.23886422,0.00012214,2]
[360202128,1746618524719,-578.90017708,0.00011404,2]
[360202129,1746618524740,-324.06320851,0.00011404,2]
[360202130,1746618524761,-167.0897343,0.00011404,2]
[360202131,1746618524790,-500.0,0.00011404,2]
[360202132,1746618524817,-500.0,0.00011404,2]
[360202133,1746618524846,-500.0,0.00011404,2]
[360202134,1746618524875,-500.0,0.00011404,2]
[360202135,1746618524901,-500.0,0.00011404,2]
[360202136,1746618524930,-500.0,0.00011404,2]
[360202137,1746618524956,-500.0,0.00011404,2]
[360202138,1746618524982,-500.0,0.00011404,2]
[360202139,1746618525009,-500.0,0.00011404,2]
[360202140,1746618525035,-500.0,0.00011404,2]
[360202141,1746618525066,-500.0,0.00011404,2]
[360202142,1746618525254,-395.43704254,0.00011404,2]
[360202143,1746618525282,-500.0,0.00011404,2]
[360202144,1746618525308,-500.0,0.00011404,2]
[360202145,1746618525336,-500.0,0.00011404,2]
[360202146,1746618525364,-500.0,0.00011404,2]
[360202147,1746618525396,-500.0,0.00011404,2]
[360202148,1746618525423,-500.0,0.00011404,2]
[360202149,1746618525449,-500.0,0.00011404,2]
[360202150,1746618525475,-500.0,0.00011404,2]
[360202151,1746618525501,-500.0,0.00011404,2]
[360202152,1746618525529,-500.0,0.00011404,2]
[360202153,1746618525555,-500.0,0.00011404,2]
[360202154,1746618525582,-500.0,0.00011404,2]
[360202155,1746618525608,-500.0,0.00011404,2]
[360202156,1746618525636,-500.0,0.00011404,2]
[360202157,1746618525658,-23556.50983757,0.00011405,2]
[360202203,1746618631981,-499.99999999,0.00011404,2]
[360202205,1746618631991,-1e-08,0.00011404,2]
[360202207,1746618632003,-499.99999999,0.00011404,2]
[360202208,1746618632012,-506.44833482,0.00011404,2]
[360202210,1746618632022,-54.52812493,0.00011405,2]
[360202212,1746618632031,-630.24175968,0.00011955,2]
[360202213,1746618632042,-5000.0,0.000123,2]
[360202214,1746618632051,-242.92464605,0.00013012,2]
[360202215,1746618632062,-300.0,0.00013296,2]
[360202216,1746618632073,-546.0,0.00013297,2]
[360202217,1746618632083,-708.0,0.00013297,2]
[360202218,1746618632094,-2241.0,0.00013297,2]
[360202219,1746618632105,-14125.38791987,0.00013298,2]
[360202220,1746618632122,-24318.48624609,0.00013298,2]
[360202271,1746618637988,-7807.91953409,0.00013298,2]
[360202273,1746618637999,-350.84817591,0.000135,2]
[360202275,1746618638008,-171.60700986,0.00013598,2]
[360202277,1746618638017,-2475.87091347,0.00013598,2]
[360202279,1746618638027,-1267.854178,0.00013598,2]
[360202482,1746618640397,-2037.4142505,0.00013598,2]
[360202484,1746618640408,-662.73951204,0.00013629,2]
[360202495,1746618640495,-70.41357986,0.00013629,2]
[360202497,1746618640505,-171.60700986,0.00013689,2]
[360202499,1746618640516,-1275.17941001,0.0001369,2]
[360202786,1746618643123,-481.31770635,0.0001369,2]
[360203085,1746618646043,-150.0,0.00013436,2]
[360203087,1746618646053,-53693.25552466,0.0001369,2]
[360203089,1746618646065,-440.05,0.0001369,2]
[360203101,1746618646176,-91.41735898,0.0001369,2]
[360203103,1746618646185,-1160.79215173,0.00013698,2]
[360203105,1746618646195,-400.0,0.00013698,2]
[360203107,1746618646204,-400.0,0.00013698,2]
[360203109,1746618646213,-316.18998314,0.00013698,2]
[360203111,1746618646222,-415.38779501,0.00013698,2]
[360203112,1746618646232,-400.0,0.00013698,2]
[360203113,1746618646241,-400.0,0.00013698,2]
[360203114,1746618646250,-400.0,0.00013698,2]
[360203115,1746618646260,-400.0,0.00013698,2]
[360203116,1746618646269,-98.05955575,0.00013698,2]
[360203788,1746618756184,500.0,0.00011402,2]
[360203789,1746618756240,500.0,0.00011402,2]
[360203790,1746618756310,245.3472056,0.00011402,2]
[360203791,1746618756352,500.0,0.00011402,2]
[360203792,1746618756400,500.0,0.00011402,2]
[360203793,1746618820248,-404.0,0.00013446,2]
[360203794,1746618820271,-396.0,0.00013446,2]
[360203796,1746618949854,-325.034,0.00013446,2]
[360203797,1746618949875,-298.966,0.00013446,2]
[360203801,1746619278779,-546.0,0.00013446,2]
[360203802,1746619278801,-2241.0,0.00013446,2]
[360203803,1746619278821,-704.0,0.00013446,2]
[360203807,1746619397091,2800.0,0.00022,30]
[360203842,1746619832260,-404.0,0.00013441,2]
[360203844,1746619832271,-4.0,0.00013446,2]
[360203846,1746619832280,-249.48302284,0.00013588,2]
[360203848,1746619832291,-300.0,0.00013589,2]
[360203850,1746619832301,-300.0,0.00013589,2]
[360203852,1746619832310,-300.0,0.00013589,2]
[360203854,1746619832320,-300.0,0.00013589,2]
[360203856,1746619832330,-1200.0,0.00013589,2]
[360203858,1746619832339,-226.84424595,0.00013589,2]
[360203860,1746619832348,-405.23012395,0.00013589,2]
[360203862,1746619832358,-17970.9930069,0.0001359,2]
[360203864,1746619832368,-171.60700986,0.00013598,2]
[360203866,1746619832378,-355.84167478,0.00013598,2]
[360203869,1746619832387,-426.29,0.000136,2]
[360203870,1746619832397,-926.1839451,0.00013629,2]
[360203873,1746619832407,-400.0,0.00013698,2]
[360203875,1746619832417,-400.0,0.00013698,2]
[360203877,1746619832426,-400.0,0.00013698,2]
[360203879,1746619832436,-400.0,0.00013698,2]
[360203881,1746619832446,-313.18760631,0.00013698,2]
[360203889,1746619832619,-400.0,0.00013698,2]
[360203890,1746619832631,-400.0,0.00013698,2]
[360203891,1746619832642,-400.0,0.00013698,2]
[360203892,1746619832651,-400.0,0.00013698,2]
[360203893,1746619832661,-400.0,0.00013698,2]
[360203894,1746619832670,-400.0,0.00013698,2]
[360203895,1746619832680,-300.0,0.00013698,2]
[360203897,1746619832690,-526.48197291,0.00013698,2]
[360203899,1746619832700,-400.0,0.00013698,2]
[360203900,1746619832709,-400.0,0.00013698,2]
[360203902,1746619832719,-400.0,0.00013698,2]
[360203903,1746619832728,-400.0,0.00013698,2]
[360203904,1746619832738,-400.0,0.00013698,2]
[360203905,1746619832748,-400.0,0.00013698,2]
[360203906,1746619832758,-400.0,0.00013698,2]
[360203907,1746619832767,-400.0,0.00013698,2]
[360203908,1746619832777,-400.0,0.00013698,2]
[360203909,1746619832786,-400.0,0.00013698,2]
[360203910,1746619832796,-969.83,0.00013698,2]
[360203911,1746619832806,-400.0,0.00013698,2]
[360203912,1746619832820,-400.0,0.00013698,2]
[360203913,1746619832830,-358.0,0.00013698,2]
[360203914,1746619832839,-400.0,0.00013698,2]
[360203915,1746619832849,-1000.0,0.00013698,2]
[360203916,1746619832859,-400.0,0.00013698,2]
[360203917,1746619832868,-400.0,0.00013698,2]
[360203918,1746619832878,-400.0,0.00013698,2]
[360203919,1746619832888,-408.03228969,0.00013698,2]
[360203920,1746619832898,-400.0,0.00013698,2]
[360203921,1746619832908,-400.0,0.00013698,2]
[360203922,1746619832917,-400.0,0.00013698,2]
[360203923,1746619832927,-400.0,0.00013698,2]
[360203924,1746619832937,-400.0,0.00013698,2]
[360203925,1746619832946,-400.0,0.00013698,2]
[360203926,1746619832956,-400.0,0.00013698,2]
[360203927,1746619832966,-400.0,0.00013698,2]
[360203928,1746619832975,-400.0,0.00013698,2]
[360203929,1746619832985,-400.0,0.00013698,2]
[360203930,1746619832995,-180.9851287,0.00013698,2]
[360203971,1746619838101,-317.3548713,0.00013698,2]
[360203972,1746619838114,-331.37407298,0.00013698,2]
[360203973,1746619838125,-400.0,0.00013698,2]
[360203974,1746619838135,-400.0,0.00013698,2]
[360203975,1746619838146,-218.04985553,0.00013698,2]
[360203976,1746619838159,-400.0,0.00013698,2]
[360203977,1746619838171,-403.4645341,0.00013698,2]
[360203978,1746619838181,-400.0,0.00013698,2]
[360203979,1746619838193,-400.0,0.00013698,2]
[360203980,1746619838204,-400.0,0.00013698,2]
[360203981,1746619838215,-400.0,0.00013698,2]
[360203982,1746619838226,-359.53405323,0.00013698,2]
[360203983,1746619838241,-40.46594677,0.00013698,2]
[360203984,1746619838252,-400.0,0.00013698,2]
[360203986,1746619838263,-400.0,0.00013698,2]
[360203988,1746619838274,-405.29905868,0.00013698,2]
[360203990,1746619838286,-573.26,0.00013698,2]
[360203992,1746619838297,-400.0,0.00013698,2]
[360203995,1746619838309,-400.0,0.00013698,2]
[360203999,1746619838320,-180.41846453,0.00013698,2]
[360204001,1746619838331,-400.0,0.00013698,2]
[360204004,1746619838343,-400.0,0.00013698,2]
[360204007,1746619838354,-400.0,0.00013698,2]
[360204008,1746619838365,-400.0,0.00013698,2]
[360204009,1746619838376,-400.0,0.00013698,2]
[360204010,1746619838386,-400.0,0.00013698,2]
[360204011,1746619838397,-212.58835664,0.00013698,2]
[360204012,1746619838408,-400.0,0.00013698,2]
[360204013,1746619838419,-400.0,0.00013698,2]
[360204014,1746619838430,-414.23256577,0.00013698,2]
[360204015,1746619838442,-1206.12,0.00013698,2]
[360204016,1746619838452,-400.0,0.00013698,2]
[360204017,1746619838464,-508.9059925,0.00013698,2]
[360204018,1746619838475,-997.8,0.00013698,2]
[360204019,1746619838487,-539.30478035,0.00013698,2]
[360204020,1746619838498,-400.0,0.00013698,2]
[360204021,1746619838509,-494.25,0.00013698,2]
[360204022,1746619838520,-400.0,0.00013698,2]
[360204023,1746619838532,-400.0,0.00013698,2]
[360204024,1746619838543,-400.0,0.00013698,2]
[360204025,1746619838555,-400.0,0.00013698,2]
[360204026,1746619838567,-400.0,0.00013698,2]
[360204027,1746619838579,-400.0,0.00013698,2]
[360204028,1746619838591,-323.71043074,0.00013698,2]
[360204696,1746619846196,-76.28956926,0.00013698,2]
[360204698,1746619846206,-400.0,0.00013698,2]
[360204700,1746619846215,-2597.03,0.00013698,2]
[360204702,1746619846225,-400.0,0.00013698,2]
[360204704,1746619846235,-400.0,0.00013698,2]
[360204706,1746619846244,-400.0,0.00013698,2]
[360204708,1746619846253,-400.0,0.00013698,2]
[360204710,1746619846263,-485.24624952,0.00013698,2]
[360204712,1746619846274,-400.0,0.00013698,2]
[360204714,1746619846283,-542.98,0.00013698,2]
[360204716,1746619846293,-400.0,0.00013698,2]
[360204718,1746619846302,-402.84303806,0.00013698,2]
[360204720,1746619846311,-400.0,0.00013698,2]
[360204722,1746619846321,-400.0,0.00013698,2]
[360204724,1746619846330,-354.99356445,0.00013698,2]
[360204863,1746620427229,1009.51,0.00022,30]
[360204865,1746620603676,-310.35813905,0.00010959,2]
[360204866,1746620610186,-300.0,0.00010959,2]
[360204867,1746620625813,-204.795082,0.00010959,2]
[360204868,1746620640769,-191.07155604,0.00010959,2]
[360204869,1746620646678,-300.0,0.00010958,2]
[360204870,1746620655236,-278.9830732,0.00010959,2]
[360204873,1746620670370,-586.40214971,0.00010959,2]
[360204874,1746620670393,-448.34996472,0.00010959,2]
[360204875,1746620685238,-734.75211443,0.00010959,2]
[360204880,1746620753890,10000.0,0.00022,30]
[360205507,1746621253458,-3054.7994472,0.00012613,2]
[360205508,1746621253489,-256.9998418,0.00012622,2]
[360205509,1746621253517,-200.0,0.00013462,2]
[360205510,1746621253769,-300.0,0.00013463,2]
[360205511,1746621253796,-238.0,0.00013463,2]
[360205512,1746621253824,-300.0,0.00013463,2]
[360205513,1746621253853,-1200.0,0.00013463,2]
[360205514,1746621253880,-90.200711,0.00013466,2]
[360205611,1746622232433,-270.0,0.00013438,2]
[360205612,1746622232443,-300.0,0.00013438,2]
[360205613,1746622232452,-300.0,0.00013438,2]
[360205614,1746622232461,-516.0,0.00013438,2]
[360205615,1746622232471,-370.30893259,0.00013439,2]
[360205616,1746622232480,-616.36448858,0.00013439,2]
[360205617,1746622232490,-500.0,0.00013439,2]
[360205618,1746622232498,-332.32466823,0.00013439,2]
[360205619,1746622232508,-480.99412149,0.00013439,2]
[360205620,1746622232517,-500.0,0.00013439,2]
[360205621,1746622232527,-500.0,0.00013439,2]
[360205622,1746622232535,-500.0,0.00013439,2]
[360205623,1746622232545,-500.0,0.00013439,2]
[360205624,1746622232554,-500.0,0.00013439,2]
[360205625,1746622232564,-500.0,0.00013439,2]
[360205626,1746622232573,-500.0,0.00013439,2]
[360205627,1746622232582,-500.0,0.00013439,2]
[360205628,1746622232592,-158.79097217,0.00013439,2]
[360205629,1746622232601,-283.66108677,0.00013439,2]
[360205630,1746622232612,-2068.0,0.00013445,2]
[360205631,1746622232621,-546.0,0.00013445,2]
[360205632,1746622232631,-2241.0,0.00013445,2]
[360205633,1746622232641,-708.0,0.00013445,2]
[360205634,1746622232650,-292.42633349,0.00013529,2]
[360205635,1746622232662,-1998.6108307,0.00013529,2]
[360205636,1746622232672,-395.39088658,0.00013598,2]
[360205637,1746622232681,-3902.66492422,0.000136,2]
[360206507,1746622326735,-300.0,0.00012554,2]
[360206508,1746622326756,-20654.0,0.00012555,2]
[360206618,1746623432851,-553.44379128,0.00012299,2]
[360206619,1746623432862,-5000.0,0.000123,2]
[360206620,1746623432872,-3518.9439651,0.00012391,2]
[360206621,1746623432881,-150.0,0.00013445,2]
[360206622,1746623432892,-300.0,0.00013457,2]
[360206623,1746623432901,-300.0,0.00013457,2]
[360206624,1746623432910,-546.0,0.00013459,2]
[360206625,1746623432920,-2241.0,0.00013459,2]
[360206626,1746623432929,-708.0,0.00013459,2]
[360206627,1746623432939,-6258.87346156,0.00013459,2]
[360206628,1746623432949,-300.0,0.0001358,2]
[360206629,1746623432958,-277.72268267,0.00013589,2]
[360206630,1746623432968,-23082.84834215,0.00013597,2]
[360206631,1746623432981,-32078.52121721,0.00013597,2]
[360206632,1746623432991,-4178.23798856,0.00013597,2]
[360206633,1746623433001,-11452.90335647,0.000136,2]
[360206634,1746623433011,-159.855698,0.000136,2]
[360206635,1746623433022,-151.0,0.000136,2]
[360206636,1746623433032,-151.0,0.000136,2]
[360206637,1746623433042,-151.0,0.000136,2]
[360206638,1746623433052,-151.0,0.000136,2]